fUST/lending_fUST_20250827
["ID","MTS","AMOUNT","RATE_DAILY","PERIOD"]
[381547832,1756277450361,-206.706763,0.00033776,30]
[381547833,1756277450371,-150.0,0.00033988,2]
[381547834,1756277450380,-15123.5091652,0.00034,14]
[381547835,1756277450394,-425.9608348,0.00034,14]
[381547836,1756277450403,-200.9967227,0.00034,2]
[381547837,1756277450413,-206.706763,0.00034063,2]
[381547838,1756277450423,-206.706763,0.00034095,60]
[381547839,1756277450432,-150.0,0.00034192,2]
[381547840,1756277450442,-134.22318592,0.000342,7]
[381547841,1756277451420,-11.44213344,0.00025131,2]
[381547842,1756277452421,-487.53185632,0.00025131,2]
[381547844,1756277470065,-152.73668016,0.00023105,2]
[381547845,1756277470086,-63.32187758,0.00024631,2]
[381547846,1756277472589,-4936.67812242,0.00024631,2]
[381547847,1756277472717,-5000.0,0.0002488,2]
[381547848,1756277472882,-5063.34187758,0.00025121,2]
[381547849,1756277473077,-10000.01,0.00025121,2]
[381547850,1756277473222,-10000.01,0.00025121,2]
[381547851,1756277473483,-10000.01,0.00025121,2]
[381547852,1756277473653,-10000.01,0.00025121,2]
[381547853,1756277474015,-10000.01,0.00025121,2]
[381547854,1756277474200,-10000.01,0.00025121,2]
[381547855,1756277474373,-10000.01,0.00025121,2]
[381547856,1756277482662,-5000.0,0.0002486,2]
[381547857,1756277482705,-0.01,0.00025111,10]
[381547858,1756277482827,-1320.7,0.00025111,10]
[381547859,1756277482886,-7358.61,0.00025121,2]
[381547860,1756277483082,-10000.01,0.00025121,2]
[381547861,1756277483282,-10000.01,0.00025121,2]
[381547862,1756277483452,-10000.01,0.00025121,2]
[381547863,1756277483618,-10000.01,0.00025121,2]
[381547864,1756277483780,-10000.01,0.00025121,2]
[381547865,1756277483927,-10000.01,0.00025121,2]
[381547866,1756277484192,-10000.01,0.00025121,2]
[381547867,1756277484347,-10000.01,0.00025121,2]
[381547869,1756277564562,1046.694467,0.00013699,2]
[381547870,1756277564776,1046.694467,0.00020187,2]
[381547871,1756277609397,5560.03638989,0.000199,2]
[381547872,1756277609521,4439.97361011,0.00021627,2]
[381547873,1756277609548,1120.06277958,0.00021627,2]
[381547874,1756277690016,5000.0,0.00022,2]
[381547876,1756277705879,5000.0,0.00022,2]
[381547877,1756277723056,5000.0,0.00022,2]
[381547878,1756277733088,-211.79,0.000221,2]
[381547879,1756277733130,-4016.39361031,0.00023353,2]
[381547880,1756277733316,-1543.64277938,0.00023353,2]
[381547881,1756277733350,-2076.8027709,0.00023548,2]
[381547882,1756277733944,-6089.32996524,0.00023566,2]
[381547883,1756277734137,-10000.01,0.00023566,2]
[381547884,1756277734338,-10000.01,0.00023566,2]
[381547885,1756277734564,-10000.01,0.00023566,2]
[381547886,1756277734755,-344.15028036,0.00023566,2]
[381547887,1756277734787,-300.0,0.00023845,2]
[381547888,1756277734848,-8711.70943928,0.00023846,2]
[381547889,1756277790194,5235.65048773,0.000199,2]
[381547890,1756277790351,4764.35951227,0.00021627,2]
[381547891,1756277790383,471.29097531,0.00021627,2]
[381547892,1756277793757,300.38537178,0.0001,2]
[381547893,1756277909850,605.03205157,0.00021519,6]
[381547894,1756277909902,605.03205157,0.00021734,6]
[381547895,1756277909957,756.29006447,0.00021949,8]
[381547896,1756277968199,4886.60712178,0.000199,2]
[381547897,1756277968515,4886.60712174,0.00021627,2]
[381547899,1756278078651,-756.29006447,0.00022164,8]
[381547900,1756278078684,-756.29006447,0.0002238,8]
[381547901,1756278078723,-320.5241523,0.00022595,8]
[381547902,1756278078758,-1333.80143752,0.0002312,2]
[381547903,1756278078935,-3666.19856248,0.0002312,2]
[381547904,1756278078967,-933.485983,0.00023338,2]
[381547905,1756278078997,-175.1496489,0.00023352,2]
[381547906,1756278079191,-4886.60712174,0.00023353,2]
[381547907,1756278079566,-1200.0,0.00023607,2]
[381547908,1756278079610,-1355.861759,0.00023624,2]
[381547909,1756278080010,-4888.286482,0.00023624,2]
[381547910,1756278080133,-1288.29056072,0.00023846,2]
[381547911,1756278080188,-160.68708453,0.00023985,5]
[381547912,1756278080233,-741.5049777,0.00024017,2]
[381547913,1756278080276,-666.0,0.00024091,2]
[381547914,1756278080320,-262.0961352,0.00024121,2]
[381547915,1756278080362,-1000.0,0.00024143,2]
[381547916,1756278080404,-695.02740812,0.00024491,2]
[381547917,1756278080447,-152.00856054,0.000246,2]
[381547918,1756278080563,-380.0,0.00024658,2]
[381547919,1756278080606,-160.68708454,0.00024714,5]
[381547920,1756278080646,-160.0,0.00024855,2]
[381547921,1756278080693,-317.11727587,0.0002498,2]
[381547922,1756278080739,-158.21657506,0.00024989,2]
[381547923,1756278080781,-510.0391811,0.0002499,2]
[381547924,1756278082187,-3677.44971451,0.0002499,2]
[381547925,1756278082318,-10000.01,0.0002499,2]
[381547926,1756278082444,-10000.01,0.0002499,2]
[381547927,1756278088708,-10000.01,0.0002499,2]
[381547928,1756278088897,-10000.01,0.0002499,2]
[381547929,1756278089686,-10000.01,0.0002499,2]
[381547930,1756278089745,-10000.01,0.0002499,2]
[381547931,1756278089828,-10000.01,0.0002499,2]
[381547932,1756278089860,-10000.01,0.0002499,2]
[381547933,1756278089957,-10000.01,0.0002499,2]
[381547934,1756278090158,-3677.54971451,0.0002499,2]
[381547935,1756278090227,-2644.91057098,0.0002499,2]
[381547936,1756278090315,-317.11727587,0.00025027,2]
[381547937,1756278090351,-598.99006995,0.00025072,2]
[381547938,1756278090384,-500.0,0.00025073,2]
[381547939,1756278090416,-500.0,0.00025073,2]
[381547940,1756278090524,-6167.79530836,0.00025073,2]
[381547941,1756278090581,-10000.01,0.00025073,2]
[381547942,1756278143962,4724.62117279,0.000199,2]
[381547943,1756278144067,4724.62117272,0.00021627,2]
[381547949,1756278228844,-4765.58704316,0.00023117,2]
[381547950,1756278228874,-168.83591368,0.0002335,2]
[381547951,1756278229042,-131.16408632,0.0002335,2]
[381547952,1756278229079,-300.0,0.0002335,2]
[381547953,1756278229109,-1200.0,0.00023351,2]
[381547954,1756278229142,-500.0,0.00023351,2]
[381547955,1756278229173,-500.0,0.00023351,2]
[381547956,1756278229204,-500.0,0.00023351,2]
[381547957,1756278229236,-500.0,0.00023351,2]
[381547958,1756278229268,-500.0,0.00023351,2]
[381547959,1756278229301,-500.0,0.00023351,2]
[381547960,1756278229331,-237.68182736,0.00023351,2]
[381547961,1756278229698,-262.31817264,0.00023351,2]
[381547962,1756278229730,-500.0,0.00023351,2]
[381547963,1756278229759,-527.15060254,0.00023351,2]
[381547964,1756278229801,-500.0,0.00023351,2]
[381547965,1756278229834,-500.0,0.00023351,2]
[381547966,1756278229868,-500.0,0.00023351,2]
[381547967,1756278229898,-500.0,0.00023351,2]
[381547968,1756278229928,-500.0,0.00023351,2]
[381547969,1756278229960,-500.0,0.00023351,2]
[381547970,1756278229991,-500.0,0.00023351,2]
[381547971,1756278230229,-500.0,0.00023351,2]
[381547972,1756278230259,-500.0,0.00023351,2]
[381547973,1756278230290,-374.43764636,0.00023351,2]
[381547974,1756278230321,-316.02484344,0.00023351,2]
[381547975,1756278230363,-500.0,0.00023351,2]
[381547976,1756278230393,-500.0,0.00023351,2]
[381547977,1756278230423,-500.0,0.00023351,2]
[381547978,1756278230454,-500.0,0.00023351,2]
[381547979,1756278230486,-500.0,0.00023351,2]
[381547980,1756278230516,-500.0,0.00023351,2]
[381547981,1756278230546,-119.0850204,0.00023351,2]
[381547982,1756278230604,-380.9149796,0.00023351,2]
[381547983,1756278230634,-500.0,0.00023351,2]
[381547984,1756278230666,-500.0,0.00023351,2]
[381547985,1756278230695,-373.51169731,0.00023351,2]
[381547986,1756278230724,-500.0,0.00023351,2]
[381547987,1756278230757,-458.40339404,0.00023351,2]
[381547988,1756278230788,-500.0,0.00023351,2]
[381547989,1756278230818,-372.86184344,0.00023351,2]
[381547990,1756278230848,-500.0,0.00023351,2]
[381547991,1756278230878,-500.0,0.00023351,2]
[381547992,1756278230908,-363.01941539,0.00023351,2]
[381547993,1756278231053,-102.58734044,0.00023351,2]
[381547994,1756278231086,-500.0,0.00023351,2]
[381547995,1756278231119,-500.0,0.00023351,2]
[381547996,1756278231152,-500.0,0.00023351,2]
[381547997,1756278231183,-500.0,0.00023351,2]
[381547998,1756278231219,-500.0,0.00023351,2]
[381547999,1756278231253,-500.0,0.00023351,2]
[381548000,1756278231289,-492.98624341,0.00023351,2]
[381548001,1756278231325,-500.0,0.00023351,2]
[381548002,1756278231359,-500.0,0.00023351,2]
[381548003,1756278231394,-308.8628323,0.00023351,2]
[381548004,1756278231634,-191.1371677,0.00023351,2]
[381548005,1756278231667,-500.0,0.00023351,2]
[381548006,1756278231698,-500.0,0.00023351,2]
[381548007,1756278231731,-500.0,0.00023351,2]
[381548008,1756278231761,-500.0,0.00023351,2]
[381548009,1756278231791,-500.0,0.00023351,2]
[381548010,1756278231821,-500.0,0.00023351,2]
[381548011,1756278231852,-500.0,0.00023351,2]
[381548012,1756278231882,-269.18262229,0.00023351,2]
[381548013,1756278231915,-500.0,0.00023351,2]
[381548014,1756278231947,-500.0,0.00023351,2]
[381548015,1756278232063,-500.0,0.00023351,2]
[381548016,1756278232096,-500.0,0.00023351,2]
[381548017,1756278232306,-500.0,0.00023351,2]
[381548018,1756278232343,-500.0,0.00023351,2]
[381548019,1756278232379,-500.0,0.00023351,2]
[381548020,1756278232412,-500.0,0.00023351,2]
[381548021,1756278232444,-500.0,0.00023351,2]
[381548022,1756278232476,-500.0,0.00023351,2]
[381548023,1756278232510,-500.0,0.00023351,2]
[381548024,1756278232543,-500.0,0.00023351,2]
[381548025,1756278232797,-500.0,0.00023351,2]
[381548026,1756278232830,-500.0,0.00023351,2]
[381548027,1756278232863,-500.0,0.00023351,2]
[381548028,1756278232894,-500.0,0.00023351,2]
[381548029,1756278232927,-500.0,0.00023351,2]
[381548030,1756278232959,-500.0,0.00023351,2]
[381548031,1756278232992,-500.0,0.00023351,2]
[381548032,1756278233024,-509.76242149,0.00023351,2]
[381548033,1756278233059,-500.0,0.00023351,2]
[381548034,1756278233092,-480.48515702,0.00023351,2]
[381548035,1756278233780,-19.51484298,0.00023351,2]
[381548036,1756278233812,-500.0,0.00023351,2]
[381548037,1756278233842,-500.0,0.00023351,2]
[381548038,1756278233871,-500.0,0.00023351,2]
[381548039,1756278233902,-225.93541739,0.00023351,2]
[381548040,1756278233933,-500.0,0.00023351,2]
[381548041,1756278233963,-500.0,0.00023351,2]
[381548042,1756278233994,-500.0,0.00023351,2]
[381548043,1756278234024,-500.0,0.00023351,2]
[381548044,1756278234058,-500.0,0.00023351,2]
[381548045,1756278234087,-500.0,0.00023351,2]
[381548046,1756278234118,-209.10947926,0.00023351,2]
[381548047,1756278320581,4409.64642793,0.000199,2]
[381548048,1756278320733,4409.64642787,0.00021627,2]
[381548049,1756278364444,160.68708453,0.00021879,5]
[381548054,1756278405087,-161.4189695,0.00022657,2]
[381548055,1756278434203,-535.69,0.00022657,2]
[381548056,1756278437882,-4302.8910305,0.00022657,2]
[381548057,1756278438093,-3473.33693358,0.00022886,2]
[381548058,1756278438126,-787.39157896,0.00023017,2]
[381548059,1756278438157,-160.0,0.00023117,2]
[381548060,1756278438187,-463.40269478,0.00023317,2]
[381548061,1756278438368,-436.54187141,0.00023317,2]
[381548062,1756278438400,-230.21906525,0.00023317,2]
[381548063,1756278438439,-500.0,0.00023317,2]
[381548064,1756278438472,-609.90923647,0.00023317,2]
[381548065,1756278438504,-500.0,0.00023317,2]
[381548066,1756278438537,-500.0,0.00023317,2]
[381548067,1756278438570,-500.0,0.00023317,2]
[381548068,1756278438606,-500.0,0.00023317,2]
[381548069,1756278438643,-500.0,0.00023317,2]
[381548070,1756278438684,-238.17245288,0.00023317,2]
[381548071,1756278438719,-444.76290342,0.00023317,2]
[381548072,1756278439113,-80.79894114,0.00023317,2]
[381548073,1756278439345,-500.0,0.00023317,2]
[381548074,1756278439381,-500.0,0.00023317,2]
[381548075,1756278439414,-500.0,0.00023317,2]
[381548076,1756278439449,-500.0,0.00023317,2]
[381548077,1756278439484,-500.0,0.00023317,2]
[381548078,1756278439516,-413.38128045,0.00023317,2]
[381548079,1756278439551,-500.0,0.00023317,2]
[381548080,1756278439584,-500.0,0.00023317,2]
[381548081,1756278439618,-231.39399251,0.00023317,2]
[381548082,1756278439651,-500.0,0.00023317,2]
[381548083,1756278439686,-48.8615718,0.00023317,2]
[381548084,1756278439899,-451.1384282,0.00023317,2]
[381548085,1756278439935,-500.0,0.00023317,2]
[381548086,1756278439968,-500.0,0.00023317,2]
[381548087,1756278440001,-500.0,0.00023317,2]
[381548088,1756278440033,-500.0,0.00023317,2]
[381548089,1756278440068,-500.0,0.00023317,2]
[381548090,1756278440101,-500.0,0.00023317,2]
[381548091,1756278440136,-500.0,0.00023317,2]
[381548092,1756278440171,-500.0,0.00023317,2]
[381548093,1756278440205,-500.0,0.00023317,2]
[381548094,1756278440322,-500.0,0.00023317,2]
[381548095,1756278440361,-500.0,0.00023317,2]
[381548096,1756278440393,-300.0,0.00023318,2]
[381548097,1756278440424,-1200.0,0.00023318,2]
[381548098,1756278440455,-2209.3715701,0.00023319,2]
[381548099,1756278440581,-1023.5887609,0.00023351,2]
[381548100,1756278440618,-3543.18605033,0.00023353,2]
[381548101,1756278440735,-866.46037754,0.00023353,2]
[381548102,1756278440768,-500.0,0.00023373,2]
[381548103,1756278440800,-500.0,0.000234,2]
[381548104,1756278440832,-500.0,0.000234,2]
[381548105,1756278440866,-516.37744465,0.000234,2]
[381548106,1756278440898,-1000.0,0.00023921,2]
[381548107,1756278440929,-1000.0,0.00023948,2]
[381548108,1756278441288,-1000.0,0.00023948,2]
[381548109,1756278441319,-500.0,0.00023972,5]
[381548110,1756278441350,-1655.044915,0.00024089,2]
[381548111,1756278441381,-355.9289995,0.00024101,2]
[381548112,1756278441412,-500.0,0.00024246,5]
[381548113,1756278441442,-934.61599234,0.0002443,2]
[381548114,1756278441516,-170.9158749,0.00024459,2]
[381548115,1756278441548,-274.13570254,0.00024467,2]
[381548116,1756278441582,-500.0,0.00024467,2]
[381548117,1756278441615,-500.0,0.00024467,2]
[381548118,1756278441650,-500.0,0.00024467,2]
[381548119,1756278441682,-500.0,0.00024467,2]
[381548120,1756278441714,-500.0,0.00024467,2]
[381548121,1756278441749,-500.0,0.00024467,2]
[381548122,1756278441958,-500.0,0.00024467,2]
[381548123,1756278441994,-500.0,0.00024467,2]
[381548124,1756278442031,-500.0,0.00024467,2]
[381548149,1756278480755,221.41,0.00016094,7]
[381548150,1756278480912,221.41,0.00016094,7]
[381548155,1756278500709,6251.98269684,0.000199,2]
[381548156,1756278500927,3748.02730316,0.00021627,2]
[381548157,1756278500969,2503.95539353,0.00021627,2]
[381548159,1756278554327,612.83,0.0002205,2]
[381548160,1756278565596,30000.0,0.00031522,49]
[381548162,1756278624630,-196.62,0.000221,2]
[381548163,1756278624664,-666.0,0.00023079,2]
[381548164,1756278624697,-159.02728811,0.00023253,2]
[381548165,1756278624730,-300.0,0.00023352,2]
[381548166,1756278624763,-300.0,0.00023352,2]
[381548167,1756278624797,-300.0,0.00023352,2]
[381548168,1756278624831,-300.0,0.00023352,2]
[381548169,1756278624865,-300.0,0.00023352,2]
[381548170,1756278624900,-1200.0,0.00023352,2]
[381548171,1756278625131,-3748.02730331,0.00023353,2]
[381548172,1756278625314,-2503.95539338,0.00023353,2]
[381548173,1756278625345,-160.0,0.00023353,2]
[381548174,1756278625381,-500.0,0.00023495,2]
[381548175,1756278625414,-261.45949185,0.00023495,2]
[381548176,1756278625451,-500.0,0.00023495,2]
[381548177,1756278625487,-192.37711028,0.00023495,2]
[381548178,1756278625520,-319.04410898,0.00023496,2]
[381548179,1756278625663,-1126.33779102,0.00023496,2]
[381548180,1756278625698,-2423.69499488,0.00023496,2]
[381548181,1756278625732,-1234.019262,0.00023733,2]
[381548182,1756278625995,-433.61457,0.00023734,2]
[381548183,1756278626028,-459.79404644,0.00023761,2]
[381548184,1756278626064,-3213.19276712,0.00024223,2]
[381548185,1756278626360,-1786.80723288,0.00024223,2]
[381548186,1756278626393,-159.0272881,0.00024366,2]
[381548187,1756278626426,-181.12497588,0.00024396,78]
[381548188,1756278626459,-616.56835711,0.00024434,2]
[381548189,1756278626492,-191.89499177,0.00024466,2]
[381548190,1756278626529,-500.0,0.00024466,2]
[381548191,1756278626567,-500.0,0.00024466,2]
[381548192,1756278626605,-500.0,0.00024466,2]
[381548193,1756278626640,-500.0,0.00024466,2]
[381548194,1756278626757,-500.0,0.00024466,2]
[381548195,1756278626795,-500.0,0.00024466,2]
[381548196,1756278626835,-500.0,0.00024466,2]
[381548197,1756278626872,-500.0,0.00024466,2]
[381548198,1756278626910,-500.0,0.00024466,2]
[381548199,1756278627121,-500.0,0.00024466,2]
[381548200,1756278627159,-500.0,0.00024466,2]
[381548201,1756278627202,-500.0,0.00024466,2]
[381548202,1756278627241,-500.0,0.00024466,2]
[381548203,1756278627279,-500.0,0.00024466,2]
[381548204,1756278627498,-372.0489434,0.00024466,2]
[381548205,1756278627536,-500.0,0.00024466,2]
[381548206,1756278627573,-500.0,0.00024466,2]
[381548207,1756278627611,-500.0,0.00024466,2]
[381548208,1756278627648,-500.0,0.00024466,2]
[381548209,1756278627685,-500.0,0.00024466,2]
[381548210,1756278627724,-500.0,0.00024466,2]
[381548211,1756278627762,-500.0,0.00024466,2]
[381548212,1756278627798,-350.0,0.00024466,2]
[381548213,1756278629742,-4184.25424178,0.00024467,2]
[381548248,1756278632161,-598.0226664,0.00024467,2]
[381548486,1756278637967,-13553.24303186,0.00024467,2]
[381548487,1756278638128,-22149.80856411,0.00024467,2]
[381548488,1756278638140,-1500.0,0.00024468,2]
[381548489,1756278638152,-264.85274484,0.00024473,2]
[381548491,1756278638164,-500.0,0.00024473,2]
[381548494,1756278638180,-500.0,0.00024473,2]
[381548496,1756278638192,-217.31728907,0.00024473,2]
[381548498,1756278638204,-454.03702704,0.00024473,2]
[381548500,1756278638217,-500.85200101,0.00024473,2]
[381548503,1756278638229,-500.0,0.00024473,2]
[381548504,1756278638242,-500.0,0.00024473,2]
[381548505,1756278638254,-500.0,0.00024473,2]
[381548506,1756278638265,-321.16597383,0.00024473,2]
[381548508,1756278638277,-500.0,0.00024473,2]
[381548510,1756278638289,-4330.09069698,0.00024972,2]
[381548513,1756278638299,-2040.15672438,0.00024999,2]
[381548515,1756278638308,-467.17,0.00025,2]
[381548517,1756278638318,-2000.0,0.00025016,2]
[381548519,1756278638328,-834.21974476,0.00025021,2]
[381548521,1756278638338,-1000.0,0.00025021,2]
[381548523,1756278638347,-1000.0,0.00025021,2]
[381548525,1756278638356,-1000.0,0.00025021,2]
[381548526,1756278638365,-3954.14707284,0.00025022,2]
[381548529,1756278638374,-924.61871491,0.00025025,2]
[381548531,1756278638384,-500.0,0.00025073,2]
[381548533,1756278638394,-500.0,0.00025073,2]
[381548535,1756278638403,-500.0,0.00025073,2]
[381548537,1756278638413,-500.0,0.00025073,2]
[381548550,1756278638755,-500.0,0.00025073,2]
[381548551,1756278638794,-445.06481498,0.00025073,2]
[381548552,1756278638815,-502.72871208,0.00025073,2]
[381548554,1756278638824,-22314.98976923,0.00025073,2]
[381548555,1756278638834,-6251.98269669,0.0002508,2]
[381548556,1756278638842,-1033.27,0.000251,7]
[381548558,1756278638852,-862.49,0.00025101,3]
[381548560,1756278638861,-431.24,0.00025101,3]
[381548562,1756278638870,-215.62,0.00025101,3]
[381548564,1756278638879,-1300.83,0.00025101,3]
[381548566,1756278638888,-650.41,0.00025101,3]
[381548568,1756278638898,-325.21,0.00025101,3]
[381548570,1756278638907,-162.6,0.00025101,3]
[381548572,1756278638917,-487.84,0.00025101,3]
[381548574,1756278638926,-255.21,0.00025101,3]
[381548576,1756278638935,-255.21,0.00025101,3]
[381548578,1756278638945,-160.0,0.00025102,2]
[381548580,1756278638954,-200.23,0.00025111,3]
[381548582,1756278638965,-1807.67,0.00025111,3]
[381548584,1756278638976,-124201.862004,0.00025111,2]
[381548587,1756278638985,-1334.15203916,0.00025111,2]
[381548589,1756278638995,-151.0,0.00025121,2]
[381548591,1756278639005,-207577.89812242,0.00025121,2]
[381548593,1756278639016,-500.0,0.00025173,2]
[381548595,1756278639025,-501.48823441,0.00025173,2]
[381548597,1756278639035,-500.51260226,0.00025173,2]
[381548599,1756278639044,-500.0,0.00025173,2]
[381548601,1756278639053,-500.0,0.00025173,2]
[381548603,1756278639062,-500.0,0.00025173,2]
[381548605,1756278639071,-500.0,0.00025173,2]
[381548607,1756278639081,-164.1333832,0.00025173,2]
[381548609,1756278639090,-154.86355859,0.00025173,2]
[381548611,1756278639099,-258.92923988,0.00025173,2]
[381548613,1756278639108,-500.0,0.00025173,2]
[381548615,1756278639117,-507.17363693,0.00025173,2]
[381548617,1756278639126,-500.0,0.00025173,2]
[381548619,1756278639136,-500.0,0.00025173,2]
[381548621,1756278639145,-500.0,0.00025173,2]
[381548622,1756278639154,-501.52291206,0.00025173,2]
[381548624,1756278639164,-500.0,0.00025173,2]
[381548626,1756278639180,-500.0,0.00025173,2]
[381548628,1756278639189,-500.0,0.00025173,2]
[381548630,1756278639198,-642.34281078,0.00025173,2]
[381548633,1756278639208,-500.0,0.00025173,2]
[381548635,1756278639219,-500.0,0.00025173,2]
[381548637,1756278639229,-502.20687387,0.00025173,2]
[381548639,1756278639238,-500.57817815,0.00025173,2]
[381548641,1756278639249,-500.0,0.00025173,2]
[381548643,1756278639258,-500.0,0.00025173,2]
[381548644,1756278639267,-504.5014014,0.00025173,2]
[381548647,1756278639277,-500.0,0.00025173,2]
[381548649,1756278639286,-500.0,0.00025173,2]
[381548650,1756278639295,-500.0,0.00025173,2]
[381548652,1756278639305,-500.0,0.00025173,2]
[381548654,1756278639315,-31050.4655009,0.0002518,2]
[381548656,1756278639324,-333.53800979,0.0002518,2]
[381548658,1756278639333,-62100.9310018,0.0002519,2]
[381548660,1756278639342,-667.07601958,0.0002519,2]
[381548662,1756278639351,-13951.92,0.000252,2]
[381548664,1756278639361,-4965.45,0.000252,7]
[381548666,1756278639370,-92975.71,0.000252,7]
[381548669,1756278639380,-417.15472785,0.000252,7]
[381548671,1756278639389,-216.14835892,0.000252,7]
[381548673,1756278639398,-217.23771399,0.000252,7]
[381548675,1756278639408,-160.0,0.000252,7]
[381548677,1756278639417,-529.56067766,0.000252,7]
[381548679,1756278639427,-1232.82495321,0.00025325,2]
[381548681,1756278639436,-160.0,0.0002533,2]
[381548682,1756278639446,-425.44119842,0.0002533,2]
[381548685,1756278639455,-232.59867797,0.0002533,2]
[381548687,1756278639465,-217.23771399,0.0002533,2]
[381548689,1756278639474,-160.0,0.0002533,2]
[381548691,1756278639483,-420.0,0.00025341,2]
[381548692,1756278639493,-420.0,0.00025341,2]
[381548695,1756278639504,-2780.10963246,0.00025369,2]
[381548696,1756278639516,-12707.75045307,0.00025393,2]
[381548699,1756278639525,-160.0,0.00025396,2]
[381548700,1756278639535,-529.56067766,0.00025396,2]
[381548702,1756278639544,-160.0,0.00025396,2]
[381548704,1756278639553,-845.298898,0.00025396,2]
[381548706,1756278639563,-1373.0,0.00025458,2]
[381548708,1756278639572,-417.15472785,0.00025474,7]
[381548710,1756278639582,-217.23771399,0.00025474,7]
[381548712,1756278639591,-2500.0,0.00025564,2]
[381548714,1756278639600,-1500.0,0.00025568,2]
[381548717,1756278639610,-1500.0,0.00025568,2]
[381548719,1756278639619,-1580.57302043,0.00025568,2]
[381548721,1756278639629,-500.0,0.00025573,2]
[381548723,1756278639638,-500.40698923,0.00025573,2]
[381548725,1756278639648,-500.0,0.00025573,2]
[381548728,1756278639658,-417.15472785,0.00025579,2]
[381548730,1756278639667,-160.0,0.00025579,2]
[381548731,1756278639676,-160.0,0.00025579,2]
[381548734,1756278639686,-160.0,0.00025596,2]
[381548736,1756278639696,-756.0,0.00025621,2]
[381548738,1756278639705,-804.1282952,0.00025632,2]
[381548740,1756278639715,-160.0,0.00025668,2]
[381548742,1756278639724,-31050.4655009,0.00025711,2]
[381548744,1756278639734,-333.53800979,0.00025711,2]
[381548746,1756278639743,-1000.0,0.00025721,2]
[381548748,1756278639753,-501.63845286,0.00025721,2]
[381548750,1756278639762,-1014.09166701,0.00025721,2]
[381548752,1756278639772,-1000.0,0.00025721,2]
[381548754,1756278639781,-508.16533693,0.00025721,2]
[381548756,1756278639791,-1000.0,0.00025721,2]
[381548758,1756278639802,-1000.0,0.00025721,2]
[381548760,1756278639812,-512.56600855,0.00025721,2]
[381548762,1756278639822,-205.858871,0.00025721,2]
[381548764,1756278639832,-1000.0,0.00025721,2]
[381548766,1756278639842,-1000.0,0.00025721,2]
[381548768,1756278639851,-1000.0,0.00025721,2]
[381548770,1756278639860,-1000.0,0.00025721,2]
[381548772,1756278639870,-1000.0,0.00025721,2]
[381548774,1756278639880,-1000.0,0.00025721,2]
[381548776,1756278639889,-1002.44756534,0.00025721,2]
[381548778,1756278639898,-1000.0,0.00025721,2]
[381548780,1756278639908,-1000.0,0.00025721,2]
[381548782,1756278639917,-3954.14707281,0.00025767,2]
[381548784,1756278639927,-172.72186731,0.00025847,11]
[381548786,1756278639936,-491.963,0.00025847,11]
[381548788,1756278639945,-5971.25,0.000259,2]
[381548790,1756278639955,-2466.27342843,0.00025977,2]
[381548792,1756278639964,-151.0,0.00026,16]
[381548794,1756278639973,-1017.98037952,0.00026112,2]
[381548796,1756278639982,-1513.55674702,0.00026116,2]
[381548798,1756278639992,-2000.0,0.00026116,2]
[381548800,1756278640001,-1000.0,0.00026121,2]
[381548802,1756278640010,-1000.0,0.00026121,2]
[381548804,1756278640019,-198.0,0.00026168,2]
[381548806,1756278640029,-211.23630374,0.00026168,2]
[381548808,1756278640038,-500.0,0.00026168,2]
[381548810,1756278640048,-151.0,0.00026168,2]